[Event "*** Titled Tuesday Blitz"]
[Site "Chess.com"]
[Date "2020.10.27"]
[Round "9"]
[White "RaunakSadhwani2005"]
[Black "vugarrasulov"]
[Result "1-0"]
[WhiteElo "2976"]
[BlackElo "2876"]
[TimeControl "180+1"]
[EndTime "11:46:55 PDT"]
[Termination "RaunakSadhwani2005 won by resignation"]

1. c4 {[%clk 0:03:00.9]} 1... Nf6 {[%clk 0:02:59.6]} 2. Nc3 {[%clk 0:03:00.5]}
2... g6 {[%clk 0:02:59]} 3. g3 {[%clk 0:02:53.5]} 3... Bg7 {[%clk 0:02:58.8]} 4.
Bg2 {[%clk 0:02:54]} 4... O-O {[%clk 0:02:59.3]} 5. Nf3 {[%clk 0:02:54.5]} 5...
d6 {[%clk 0:02:57.2]} 6. O-O {[%clk 0:02:54.3]} 6... e5 {[%clk 0:02:55]} 7. d3
{[%clk 0:02:54.4]} 7... Re8 {[%clk 0:02:54.8]} 8. Rb1 {[%clk 0:02:46.6]} 8... e4
{[%clk 0:02:43.3]} 9. dxe4 {[%clk 0:02:42.2]} 9... Nxe4 {[%clk 0:02:44.2]} 10.
Nxe4 {[%clk 0:02:41.6]} 10... Rxe4 {[%clk 0:02:45.1]} 11. b3 {[%clk 0:02:30.9]}
11... Nc6 {[%clk 0:02:35.2]} 12. Bb2 {[%clk 0:02:30]} 12... Bxb2 {[%clk
0:02:32.5]} 13. Rxb2 {[%clk 0:02:30.9]} 13... Qf6 {[%clk 0:02:32.9]} 14. Rd2
{[%clk 0:02:30.5]} 14... Bf5 {[%clk 0:02:23.2]} 15. Nh4 {[%clk 0:02:22.8]} 15...
Re7 {[%clk 0:02:17.3]} 16. Nxf5 {[%clk 0:02:21.5]} 16... Qxf5 {[%clk 0:02:18.2]}
17. e3 {[%clk 0:02:21.4]} 17... Qf6 {[%clk 0:02:12.9]} 18. Qf3 {[%clk 0:02:06]}
18... Qc3 {[%clk 0:02:05]} 19. Rfd1 {[%clk 0:02:03.2]} 19... Rae8 {[%clk
0:02:03.6]} 20. h3 {[%clk 0:01:50.2]} 20... a5 {[%clk 0:02:03.1]} 21. Qd5 {[%clk
0:01:46.9]} 21... Re5 {[%clk 0:01:54.1]} 22. Qd3 {[%clk 0:01:47.3]} 22... Qxd3
{[%clk 0:01:48.8]} 23. Rxd3 {[%clk 0:01:48.2]} 23... Ra8 {[%clk 0:01:41.3]} 24.
a3 {[%clk 0:01:38.4]} 24... Ra6 {[%clk 0:01:30]} 25. f4 {[%clk 0:01:27.9]} 25...
Re7 {[%clk 0:01:24.3]} 26. Kf2 {[%clk 0:01:26.5]} 26... Rb6 {[%clk 0:01:19.1]}
27. Rc1 {[%clk 0:01:21.2]} 27... Na7 {[%clk 0:00:40.2]} 28. c5 {[%clk
0:01:19.1]} 28... dxc5 {[%clk 0:00:41.1]} 29. Rxc5 {[%clk 0:01:19.3]} 29... Nb5
{[%clk 0:00:34.6]} 30. a4 {[%clk 0:01:11.9]} 30... Nd6 {[%clk 0:00:35]} 31. Rxa5
{[%clk 0:01:12]} 31... Ne4+ {[%clk 0:00:35]} 32. Bxe4 {[%clk 0:01:08.4]} 32...
Rxe4 {[%clk 0:00:35.9]} 33. Rc5 {[%clk 0:01:00.8]} 33... c6 {[%clk 0:00:28.5]}
34. a5 {[%clk 0:00:53.7]} 34... Ra6 {[%clk 0:00:28.6]} 35. Rd4 {[%clk
0:00:47.9]} 35... Rxd4 {[%clk 0:00:28.3]} 36. exd4 {[%clk 0:00:48.8]} 36... Kf8
{[%clk 0:00:29]} 37. d5 {[%clk 0:00:42.4]} 37... Ke7 {[%clk 0:00:27.3]} 38. dxc6
{[%clk 0:00:41.1]} 38... bxc6 {[%clk 0:00:28.2]} 39. Ke3 {[%clk 0:00:38.9]}
39... Kd6 {[%clk 0:00:28.7]} 40. Kd4 {[%clk 0:00:38]} 40... Ra8 {[%clk
0:00:29.2]} 41. b4 {[%clk 0:00:34.1]} 41... Rb8 {[%clk 0:00:27.3]} 42. Kc3
{[%clk 0:00:29.7]} 42... f6 {[%clk 0:00:24.8]} 43. Kc4 {[%clk 0:00:20.5]} 43...
Re8 {[%clk 0:00:24.3]} 44. a6 {[%clk 0:00:20.7]} 44... Re4+ {[%clk 0:00:13.4]}
45. Kb3 {[%clk 0:00:20.7]} 45... Re3+ {[%clk 0:00:13.3]} 46. Ka4 {[%clk
0:00:19.9]} 46... Re1 {[%clk 0:00:12.1]} 47. Ka5 {[%clk 0:00:19.8]} 47... Kc7
{[%clk 0:00:11.7]} 48. b5 {[%clk 0:00:18.6]} 48... Ra1+ {[%clk 0:00:12.1]} 49.
Kb4 {[%clk 0:00:18.4]} 49... Rb1+ {[%clk 0:00:12.7]} 50. Kc4 {[%clk 0:00:18]}
50... Rc1+ {[%clk 0:00:11.6]} 51. Kd4 {[%clk 0:00:17.9]} 51... Rd1+ {[%clk
0:00:10.5]} 52. Ke4 {[%clk 0:00:16.9]} 52... Re1+ {[%clk 0:00:10.2]} 53. Kf3
{[%clk 0:00:17]} 53... Kb6 {[%clk 0:00:10.2]} 54. Rxc6+ {[%clk 0:00:14.6]} 54...
Kxb5 {[%clk 0:00:10.4]} 55. Rxf6 {[%clk 0:00:15.5]} 55... Rf1+ {[%clk
0:00:10.3]} 56. Kg4 {[%clk 0:00:16.1]} 56... Ra1 {[%clk 0:00:10.5]} 57. Rf7
{[%clk 0:00:15.9]} 57... h5+ {[%clk 0:00:09]} 58. Kh4 {[%clk 0:00:15.9]} 58...
Rxa6 {[%clk 0:00:09.9]} 59. f5 {[%clk 0:00:15.4]} 59... Kc5 {[%clk 0:00:08.9]}
60. fxg6 {[%clk 0:00:14.8]} 60... Rxg6 {[%clk 0:00:09.8]} 61. Rf5+ {[%clk
0:00:15]} 61... Kd6 {[%clk 0:00:10.7]} 62. Rxh5 {[%clk 0:00:15.9]} 62... Re6
{[%clk 0:00:10.7]} 63. g4 {[%clk 0:00:16.2]} 63... Re1 {[%clk 0:00:11.6]} 64.
Rf5 {[%clk 0:00:16.5]} 64... Ke6 {[%clk 0:00:12.5]} 65. Rf3 {[%clk 0:00:16.9]}
65... Re5 {[%clk 0:00:10.9]} 66. g5 {[%clk 0:00:16.9]} 66... Re1 {[%clk
0:00:10.4]} 67. Kh5 {[%clk 0:00:16.9]} 67... Rg1 {[%clk 0:00:09.3]} 68. h4
{[%clk 0:00:17.2]} 68... Ke5 {[%clk 0:00:10.2]} 69. Kh6 {[%clk 0:00:17.4]} 69...
Ke6 {[%clk 0:00:11.1]} 70. h5 {[%clk 0:00:17.4]} 70... Rg4 {[%clk 0:00:11.6]}
71. g6 {[%clk 0:00:17.8]} 71... Rg1 {[%clk 0:00:11.9]} 72. g7 {[%clk 0:00:18.1]}
72... Rg4 {[%clk 0:00:12.8]} 73. Rf8 {[%clk 0:00:17.9]} 1-0

[Event "*** Titled Tuesday Blitz"]
[Site "Chess.com"]
[Date "2020.10.27"]
[Round "9"]
[White "northridgehawk"]
[Black "GMaka"]
[Result "0-1"]
[WhiteElo "2263"]
[BlackElo "2398"]
[TimeControl "180+1"]
[EndTime "11:46:55 PDT"]
[Termination "GMaka won by checkmate"]

1. e4 {[%clk 0:02:50.4]} 1... c6 {[%clk 0:02:56.9]} 2. d4 {[%clk 0:02:49.3]}
2... d5 {[%clk 0:02:57.8]} 3. exd5 {[%clk 0:02:49.8]} 3... cxd5 {[%clk 0:02:56]}
4. Bd3 {[%clk 0:02:50.4]} 4... Nc6 {[%clk 0:02:55.5]} 5. Ne2 {[%clk 0:02:50.8]}
5... Bg4 {[%clk 0:02:55.8]} 6. f3 {[%clk 0:02:48.4]} 6... Bh5 {[%clk 0:02:55.4]}
7. Be3 {[%clk 0:02:48.7]} 7... Qb6 {[%clk 0:02:51.5]} 8. Nbc3 {[%clk 0:02:47]}
8... e6 {[%clk 0:02:49.6]} 9. Qd2 {[%clk 0:02:45.5]} 9... Nb4 {[%clk 0:02:47.8]}
10. Bb5+ {[%clk 0:02:42.2]} 10... Nc6 {[%clk 0:02:45.8]} 11. Nf4 {[%clk
0:02:40.3]} 11... Bg6 {[%clk 0:02:43.4]} 12. Nxg6 {[%clk 0:02:40.2]} 12... hxg6
{[%clk 0:02:44.3]} 13. O-O-O {[%clk 0:02:36]} 13... Bb4 {[%clk 0:02:38]} 14. Bd3
{[%clk 0:02:34.4]} 14... Qa5 {[%clk 0:02:34]} 15. Kb1 {[%clk 0:02:31.3]} 15...
Nge7 {[%clk 0:02:29.8]} 16. a3 {[%clk 0:02:23.2]} 16... Bxc3 {[%clk 0:02:22.2]}
17. Qxc3 {[%clk 0:02:24.1]} 17... Qxc3 {[%clk 0:02:21.5]} 18. bxc3 {[%clk
0:02:25]} 18... Na5 {[%clk 0:02:20.5]} 19. h4 {[%clk 0:02:22.3]} 19... Rc8
{[%clk 0:02:18.6]} 20. Bd2 {[%clk 0:02:17.2]} 20... Nc4 {[%clk 0:02:13.2]} 21.
Bc1 {[%clk 0:02:17]} 21... Rc6 {[%clk 0:02:11.9]} 22. Ka2 {[%clk 0:02:14.2]}
22... Nc8 {[%clk 0:02:09.6]} 23. Rde1 {[%clk 0:02:11.7]} 23... N8d6 {[%clk
0:02:09.1]} 24. g4 {[%clk 0:02:04.8]} 24... Nb5 {[%clk 0:02:03.4]} 25. Bb2
{[%clk 0:01:54.7]} 25... Ke7 {[%clk 0:01:59.3]} 26. Bxc4 {[%clk 0:01:47]} 26...
Rxc4 {[%clk 0:01:58.5]} 27. Kb3 {[%clk 0:01:45.5]} 27... Rhc8 {[%clk 0:01:57.2]}
28. Re3 {[%clk 0:01:44.9]} 28... a5 {[%clk 0:01:53.1]} 29. a4 {[%clk 0:01:45]}
29... Nd6 {[%clk 0:01:50.3]} 30. Ba3 {[%clk 0:01:43.8]} 30... b5 {[%clk
0:01:49.2]} 31. axb5 {[%clk 0:01:42.2]} 31... Rb8 {[%clk 0:01:48.3]} 32. h5
{[%clk 0:01:34.1]} 32... gxh5 {[%clk 0:01:42.3]} 33. gxh5 {[%clk 0:01:32.2]}
33... Kd7 {[%clk 0:01:39.2]} 34. Bxd6 {[%clk 0:01:10.6]} 34... Kxd6 {[%clk
0:01:40.1]} 35. h6 {[%clk 0:01:10.1]} 35... Rxb5+ {[%clk 0:01:40.1]} 36. Ka3
{[%clk 0:01:10]} 36... gxh6 {[%clk 0:01:40.1]} 37. Rxh6 {[%clk 0:01:09]} 37...
Rb1 {[%clk 0:01:40]} 38. f4 {[%clk 0:01:02.1]} 38... Ra1+ {[%clk 0:01:39.3]} 39.
Kb2 {[%clk 0:01:01.9]} 39... Rca4 {[%clk 0:01:38.9]} 40. f5 {[%clk 0:00:58.6]}
40... R4a2+ {[%clk 0:01:18.9]} 41. Kb3 {[%clk 0:00:57.1]} 41... Ra3+ {[%clk
0:01:12.1]} 42. Kb2 {[%clk 0:00:55.8]} 42... a4 {[%clk 0:01:12.5]} 43. c4 {[%clk
0:00:44.3]} 43... Rxe3 {[%clk 0:00:59.4]} 44. c5+ {[%clk 0:00:41.3]} 44... Kc6
{[%clk 0:00:44.7]} 45. Kxa1 {[%clk 0:00:40.3]} 45... Kb5 {[%clk 0:00:44.3]} 46.
fxe6 {[%clk 0:00:36.2]} 46... fxe6 {[%clk 0:00:44.1]} 47. Kb2 {[%clk 0:00:36.5]}
47... a3+ {[%clk 0:00:27]} 48. Ka2 {[%clk 0:00:35.9]} 48... Kb4 {[%clk
0:00:21.6]} 49. c6 {[%clk 0:00:30.2]} 49... Rc3 {[%clk 0:00:20.8]} 50. Kb1
{[%clk 0:00:27.4]} 50... Rxc6 {[%clk 0:00:18.8]} 51. Rh3 {[%clk 0:00:25.7]}
51... a2+ {[%clk 0:00:18]} 52. Kxa2 {[%clk 0:00:23.3]} 52... Rxc2+ {[%clk
0:00:18]} 53. Kb1 {[%clk 0:00:23.5]} 53... Re2 {[%clk 0:00:17.6]} 54. Rd3 {[%clk
0:00:22.7]} 54... Kc4 {[%clk 0:00:17.7]} 55. Rd1 {[%clk 0:00:22.6]} 55... Re4
{[%clk 0:00:18.1]} 56. Kc2 {[%clk 0:00:21.3]} 56... Rxd4 {[%clk 0:00:18.1]} 57.
Re1 {[%clk 0:00:21.4]} 57... Re4 {[%clk 0:00:18.5]} 58. Ra1 {[%clk 0:00:18.8]}
58... Re2+ {[%clk 0:00:16.7]} 59. Kd1 {[%clk 0:00:18.9]} 59... Rh2 {[%clk
0:00:16.4]} 60. Ra4+ {[%clk 0:00:19.3]} 60... Kd3 {[%clk 0:00:16.1]} 61. Ra3+
{[%clk 0:00:19.3]} 61... Ke4 {[%clk 0:00:15.9]} 62. Ra6 {[%clk 0:00:19.1]} 62...
e5 {[%clk 0:00:16]} 63. Ra4+ {[%clk 0:00:18.5]} 63... d4 {[%clk 0:00:16.4]} 64.
Ra8 {[%clk 0:00:18.1]} 64... Ke3 {[%clk 0:00:16.5]} 65. Rg8 {[%clk 0:00:15.2]}
65... e4 {[%clk 0:00:16.2]} 66. Rg3+ {[%clk 0:00:14.9]} 66... Kf4 {[%clk
0:00:16.6]} 67. Rg8 {[%clk 0:00:15]} 67... d3 {[%clk 0:00:17]} 68. Rf8+ {[%clk
0:00:10]} 68... Ke3 {[%clk 0:00:17.2]} 69. Rf1 {[%clk 0:00:09.1]} 69... Ra2
{[%clk 0:00:16.7]} 70. Re1+ {[%clk 0:00:08.8]} 70... Kd4 {[%clk 0:00:17.1]} 71.
Rg1 {[%clk 0:00:05.4]} 71... Ra1+ {[%clk 0:00:15.4]} 72. Kd2 {[%clk 0:00:05.6]}
72... e3# {[%clk 0:00:15.6]} 0-1

[Event "*** Titled Tuesday Blitz"]
[Site "Chess.com"]
[Date "2020.10.27"]
[Round "9"]
[White "kuli4ik"]
[Black "DenLaz"]
[Result "0-1"]
[WhiteElo "2879"]
[BlackElo "2787"]
[TimeControl "180+1"]
[EndTime "11:47:03 PDT"]
[Termination "DenLaz won by checkmate"]

1. d4 {[%clk 0:02:25.8]} 1... d5 {[%clk 0:02:57.8]} 2. Nf3 {[%clk 0:02:26]} 2...
Nf6 {[%clk 0:02:57.9]} 3. Bf4 {[%clk 0:02:26.7]} 3... e6 {[%clk 0:02:58.2]} 4.
e3 {[%clk 0:02:26.2]} 4... Bd6 {[%clk 0:02:58.7]} 5. Bg3 {[%clk 0:02:26.4]} 5...
O-O {[%clk 0:02:58.9]} 6. Bd3 {[%clk 0:02:25.8]} 6... c5 {[%clk 0:02:59.4]} 7.
dxc5 {[%clk 0:02:24.5]} 7... Bxc5 {[%clk 0:02:58.8]} 8. O-O {[%clk 0:02:24.6]}
8... Nc6 {[%clk 0:02:58]} 9. c4 {[%clk 0:02:25.1]} 9... dxc4 {[%clk 0:02:54]}
10. Bxc4 {[%clk 0:02:25.1]} 10... Qxd1 {[%clk 0:02:47.1]} 11. Rxd1 {[%clk
0:02:26]} 11... b6 {[%clk 0:02:47.7]} 12. Nc3 {[%clk 0:02:24.8]} 12... Bb7
{[%clk 0:02:47]} 13. Rac1 {[%clk 0:02:22.1]} 13... Rfd8 {[%clk 0:02:44.8]} 14.
a3 {[%clk 0:02:20.2]} 14... Rac8 {[%clk 0:02:27.1]} 15. Rxd8+ {[%clk 0:02:02.8]}
15... Rxd8 {[%clk 0:02:25.8]} 16. Kf1 {[%clk 0:02:03.1]} 16... h6 {[%clk
0:02:17.6]} 17. Ke1 {[%clk 0:02:00.8]} 17... Nh5 {[%clk 0:02:12.8]} 18. Ne4
{[%clk 0:01:37.6]} 18... Bf8 {[%clk 0:01:47.1]} 19. Bb5 {[%clk 0:01:25.9]} 19...
Na5 {[%clk 0:01:30]} 20. Ned2 {[%clk 0:01:18.3]} 20... Nxg3 {[%clk 0:01:28.6]}
21. hxg3 {[%clk 0:01:19.2]} 21... a6 {[%clk 0:01:22.5]} 22. Be2 {[%clk
0:01:15.8]} 22... Rc8 {[%clk 0:00:47.1]} 23. Rxc8 {[%clk 0:01:08.9]} 23... Bxc8
{[%clk 0:00:48]} 24. Nd4 {[%clk 0:01:03]} 24... e5 {[%clk 0:00:36.4]} 25. N4f3
{[%clk 0:00:58.5]} 25... f6 {[%clk 0:00:35.7]} 26. b4 {[%clk 0:00:55.1]} 26...
Nc6 {[%clk 0:00:36]} 27. Bc4+ {[%clk 0:00:51.6]} 27... Kh7 {[%clk 0:00:36.3]}
28. Bd3+ {[%clk 0:00:33.8]} 28... g6 {[%clk 0:00:32.8]} 29. Nh4 {[%clk
0:00:27.7]} 29... f5 {[%clk 0:00:27.6]} 30. e4 {[%clk 0:00:25.8]} 30... f4
{[%clk 0:00:27.9]} 31. gxf4 {[%clk 0:00:18.4]} 31... exf4 {[%clk 0:00:28.8]} 32.
Nhf3 {[%clk 0:00:16.9]} 32... Kg7 {[%clk 0:00:26]} 33. e5 {[%clk 0:00:15]} 33...
g5 {[%clk 0:00:24]} 34. Be4 {[%clk 0:00:13.5]} 34... Ne7 {[%clk 0:00:20.6]} 35.
Nc4 {[%clk 0:00:13.7]} 35... b5 {[%clk 0:00:21.1]} 36. Nd6 {[%clk 0:00:13.8]}
36... Be6 {[%clk 0:00:21.4]} 37. Bb7 {[%clk 0:00:13.5]} 37... Ng6 {[%clk
0:00:13.8]} 38. Bxa6 {[%clk 0:00:11.1]} 38... Bd5 {[%clk 0:00:14.2]} 39. Bxb5
{[%clk 0:00:08.6]} 39... g4 {[%clk 0:00:14.2]} 40. Nf5+ {[%clk 0:00:07.3]} 40...
Kf7 {[%clk 0:00:12.9]} 41. N3h4 {[%clk 0:00:07.4]} 41... Nxe5 {[%clk 0:00:11.8]}
42. g3 {[%clk 0:00:05.1]} 42... f3 {[%clk 0:00:10]} 43. Ne3 {[%clk 0:00:05.3]}
43... Be4 {[%clk 0:00:10.5]} 44. Kd2 {[%clk 0:00:03]} 44... Kf6 {[%clk
0:00:09.6]} 45. Bf1 {[%clk 0:00:03.1]} 45... h5 {[%clk 0:00:09.7]} 46. Kc3
{[%clk 0:00:03.4]} 46... Bb7 {[%clk 0:00:05.8]} 47. a4 {[%clk 0:00:03.2]} 47...
Ke6 {[%clk 0:00:04.1]} 48. b5 {[%clk 0:00:03.6]} 48... Bg7 {[%clk 0:00:04.5]}
49. Kb4 {[%clk 0:00:03.6]} 49... Bf8+ {[%clk 0:00:04.6]} 50. Kc3 {[%clk
0:00:03.9]} 50... Bc5 {[%clk 0:00:04.9]} 51. Nhf5 {[%clk 0:00:03.2]} 51... Be4
{[%clk 0:00:04.5]} 52. Nd4+ {[%clk 0:00:03.4]} 52... Kd6 {[%clk 0:00:05]} 53.
Ndf5+ {[%clk 0:00:03.2]} 53... Ke6 {[%clk 0:00:03.8]} 54. Nd4+ {[%clk
0:00:03.4]} 54... Kd6 {[%clk 0:00:04.3]} 55. a5 {[%clk 0:00:04.3]} 55... Nd7
{[%clk 0:00:03.6]} 56. b6 {[%clk 0:00:04.3]} 56... Ke5 {[%clk 0:00:02.5]} 57.
Nb3 {[%clk 0:00:03]} 57... Bxe3 {[%clk 0:00:02]} 58. fxe3 {[%clk 0:00:03.9]}
58... Kd6 {[%clk 0:00:01.9]} 59. Kd4 {[%clk 0:00:03.9]} 59... Bd5 {[%clk
0:00:01.9]} 60. Nd2 {[%clk 0:00:03.7]} 60... h4 {[%clk 0:00:02.4]} 61. e4 {[%clk
0:00:04]} 61... hxg3 {[%clk 0:00:02.5]} 62. e5+ {[%clk 0:00:01.5]} 62... Ke6
{[%clk 0:00:03]} 63. Ke3 {[%clk 0:00:01.5]} 63... g2 {[%clk 0:00:03.2]} 64. Bxg2
{[%clk 0:00:02.2]} 64... fxg2 {[%clk 0:00:04.1]} 65. Kf2 {[%clk 0:00:03]} 65...
Nxe5 {[%clk 0:00:03.8]} 66. a6 {[%clk 0:00:02.7]} 66... Nd3+ {[%clk 0:00:04.5]}
67. Kg1 {[%clk 0:00:03]} 67... Nf4 {[%clk 0:00:05.3]} 68. b7 {[%clk 0:00:03.4]}
68... Ne2+ {[%clk 0:00:05.8]} 69. Kh2 {[%clk 0:00:04.3]} 69... g1=Q# {[%clk
0:00:06.7]} 0-1

[Event "*** Titled Tuesday Blitz"]
[Site "Chess.com"]
[Date "2020.10.27"]
[Round "9"]
[White "LubovMarkelova"]
[Black "Khazieva_Elza"]
[Result "1/2-1/2"]
[WhiteElo "2253"]
[BlackElo "2471"]
[TimeControl "180+1"]
[EndTime "11:47:08 PDT"]
[Termination "Game drawn by repetition"]

1. d4 {[%clk 0:03:00.9]} 1... Nf6 {[%clk 0:02:59.9]} 2. Nf3 {[%clk 0:02:58.3]}
2... d6 {[%clk 0:03:00.1]} 3. c4 {[%clk 0:02:54.7]} 3... Bf5 {[%clk 0:02:59.8]}
4. Qb3 {[%clk 0:02:49]} 4... Qc8 {[%clk 0:02:58.6]} 5. Nc3 {[%clk 0:02:44.9]}
5... c6 {[%clk 0:02:57.6]} 6. g3 {[%clk 0:02:41.1]} 6... h6 {[%clk 0:02:56.2]}
7. Bg2 {[%clk 0:02:40.4]} 7... Nbd7 {[%clk 0:02:56.4]} 8. O-O {[%clk 0:02:38.1]}
8... e5 {[%clk 0:02:56.6]} 9. c5 {[%clk 0:01:38.5]} 9... Bh7 {[%clk 0:02:16.9]}
10. cxd6 {[%clk 0:01:36.2]} 10... Bxd6 {[%clk 0:02:17]} 11. dxe5 {[%clk
0:01:33.2]} 11... Nxe5 {[%clk 0:02:15]} 12. Rd1 {[%clk 0:01:12.8]} 12... Bc7
{[%clk 0:01:57.4]} 13. Nxe5 {[%clk 0:00:53.6]} 13... Bxe5 {[%clk 0:01:57]} 14.
f4 {[%clk 0:00:54.1]} 14... Bc7 {[%clk 0:01:54.1]} 15. e4 {[%clk 0:00:54.5]}
15... Bb6+ {[%clk 0:01:48.6]} 16. Kf1 {[%clk 0:00:41.1]} 16... O-O {[%clk
0:01:42.3]} 17. h3 {[%clk 0:00:27.7]} 17... Qc7 {[%clk 0:01:18]} 18. e5 {[%clk
0:00:20.2]} 18... Nd7 {[%clk 0:01:15.8]} 19. Na4 {[%clk 0:00:18.7]} 19... Nc5
{[%clk 0:01:02.3]} 20. Nxc5 {[%clk 0:00:18.7]} 20... Bxc5 {[%clk 0:01:03.2]} 21.
Be3 {[%clk 0:00:19.2]} 21... Bxe3 {[%clk 0:00:57.4]} 22. Qxe3 {[%clk 0:00:20.1]}
22... Qa5 {[%clk 0:00:52.1]} 23. Kg1 {[%clk 0:00:16.5]} 23... Rfe8 {[%clk
0:00:46]} 24. a3 {[%clk 0:00:15.6]} 24... Bf5 {[%clk 0:00:45.2]} 25. b4 {[%clk
0:00:15.3]} 25... Qa4 {[%clk 0:00:41.4]} 26. Rd6 {[%clk 0:00:14.8]} 26... a5
{[%clk 0:00:38.9]} 27. bxa5 {[%clk 0:00:12.8]} 27... Rxa5 {[%clk 0:00:38.2]} 28.
Rd4 {[%clk 0:00:09.9]} 28... Qc2 {[%clk 0:00:34.6]} 29. Rd2 {[%clk 0:00:08.9]}
29... Qc4 {[%clk 0:00:33.6]} 30. Rad1 {[%clk 0:00:08.7]} 30... Qa4 {[%clk
0:00:27.2]} 31. Qb6 {[%clk 0:00:05.6]} 31... Qxa3 {[%clk 0:00:25.5]} 32. Qxb7
{[%clk 0:00:05.3]} 32... Qxg3 {[%clk 0:00:23.4]} 33. Qxc6 {[%clk 0:00:05.8]}
33... Rf8 {[%clk 0:00:20.6]} 34. Qb6 {[%clk 0:00:05.6]} 34... Ra4 {[%clk
0:00:18.7]} 35. Qf2 {[%clk 0:00:05.9]} 35... Qg6 {[%clk 0:00:13.9]} 36. Rd6
{[%clk 0:00:05.1]} 36... Qh5 {[%clk 0:00:11.9]} 37. Kh2 {[%clk 0:00:02.9]} 37...
Rc4 {[%clk 0:00:07.1]} 38. R1d2 {[%clk 0:00:03]} 38... Rc1 {[%clk 0:00:06.8]}
39. R2d4 {[%clk 0:00:01.6]} 39... f6 {[%clk 0:00:06.4]} 40. Rd8 {[%clk
0:00:02.4]} 40... fxe5 {[%clk 0:00:05.9]} 41. Rxf8+ {[%clk 0:00:02.5]} 41...
Kxf8 {[%clk 0:00:06.5]} 42. Rd8+ {[%clk 0:00:03.4]} 42... Ke7 {[%clk 0:00:06.5]}
43. Qb6 {[%clk 0:00:04]} 43... exf4 {[%clk 0:00:04.7]} 44. Rb8 {[%clk
0:00:03.8]} 44... Qh4 {[%clk 0:00:04.1]} 45. Rb7+ {[%clk 0:00:04.2]} 45... Bd7
{[%clk 0:00:04.2]} 46. Rxd7+ {[%clk 0:00:03.7]} 46... Kxd7 {[%clk 0:00:04.4]}
47. Qd4+ {[%clk 0:00:04.6]} 47... Ke6 {[%clk 0:00:04.6]} 48. Qd5+ {[%clk
0:00:04.1]} 48... Ke7 {[%clk 0:00:05]} 49. Qe5+ {[%clk 0:00:04.1]} 49... Kf8
{[%clk 0:00:05.3]} 50. Qb8+ {[%clk 0:00:04]} 50... Kf7 {[%clk 0:00:04.8]} 51.
Qa7+ {[%clk 0:00:03.6]} 51... Kf6 {[%clk 0:00:02.6]} 52. Qa6+ {[%clk 0:00:02.4]}
52... Ke7 {[%clk 0:00:02.3]} 53. Qa3+ {[%clk 0:00:01.9]} 53... Kd8 {[%clk
0:00:02.4]} 54. Qxc1 {[%clk 0:00:02.4]} 54... Qg3+ {[%clk 0:00:02.9]} 55. Kh1
{[%clk 0:00:02]} 55... f3 {[%clk 0:00:03.8]} 56. Qd2+ {[%clk 0:00:02.2]} 56...
Kc7 {[%clk 0:00:04.1]} 57. Qc3+ {[%clk 0:00:02.5]} 57... Kb8 {[%clk 0:00:04.6]}
58. Qxf3 {[%clk 0:00:03.1]} 58... Qe1+ {[%clk 0:00:04.8]} 59. Kh2 {[%clk
0:00:03.1]} 59... Qe5+ {[%clk 0:00:05.7]} 60. Kh1 {[%clk 0:00:03]} 60... Qe1+
{[%clk 0:00:05.6]} 61. Kh2 {[%clk 0:00:03.5]} 61... Qe5+ {[%clk 0:00:05.7]} 62.
Qg3 {[%clk 0:00:03.4]} 62... Qxg3+ {[%clk 0:00:05.9]} 63. Kxg3 {[%clk
0:00:04.3]} 63... Kc7 {[%clk 0:00:06.4]} 64. Kf4 {[%clk 0:00:04.9]} 64... Kd6
{[%clk 0:00:07.1]} 65. Kf5 {[%clk 0:00:05.6]} 65... Ke7 {[%clk 0:00:07.6]} 66.
Kg6 {[%clk 0:00:06.2]} 66... Kf8 {[%clk 0:00:08.1]} 67. Bd5 {[%clk 0:00:06.2]}
67... h5 {[%clk 0:00:06.3]} 68. Kxh5 {[%clk 0:00:04.8]} 68... g5 {[%clk
0:00:06.5]} 69. Kxg5 {[%clk 0:00:04.7]} 69... Kg7 {[%clk 0:00:06.8]} 70. Kh5
{[%clk 0:00:03.8]} 70... Kh8 {[%clk 0:00:07.7]} 71. Kg5 {[%clk 0:00:03.9]} 71...
Kg7 {[%clk 0:00:08.3]} 72. Kh5 {[%clk 0:00:04.4]} 72... Kh8 {[%clk 0:00:09.2]}
73. Kg5 {[%clk 0:00:05]} 73... Kg7 {[%clk 0:00:10.1]} 1/2-1/2